fUST/lending_fUST_20240617
["ID","MTS","AMOUNT","RATE_DAILY","PERIOD"]
[329667587,1718555456336,-509.1606772,0.00015093,2]
[329667588,1718555456377,-285.94873973,0.00015093,2]
[329667589,1718555456412,-500.0,0.00015093,2]
[329667590,1718555456448,-500.0,0.00015093,2]
[329667591,1718555456511,-500.0,0.00015093,2]
[329667592,1718555456541,-500.0,0.00015093,2]
[329667594,1718555456607,-500.0,0.00015093,2]
[329667596,1718555456646,-370.64567787,0.00015093,2]
[329667597,1718555456659,-500.0,0.00015093,2]
[329667598,1718555456681,-500.0,0.00015093,2]
[329667599,1718555456715,-500.0,0.00015093,2]
[329667600,1718555456736,-500.0,0.00015093,2]
[329667601,1718555456757,-500.0,0.00015093,2]
[329667602,1718555456786,-500.0,0.00015093,2]
[329667603,1718555456814,-500.0,0.00015093,2]
[329667604,1718555456843,-500.0,0.00015093,2]
[329667605,1718555456908,-500.0,0.00015093,2]
[329667606,1718555456922,-504.12408973,0.00015093,2]
[329667607,1718555456945,-500.0,0.00015093,2]
[329667608,1718555456956,-500.0,0.00015093,2]
[329667609,1718555456968,-500.0,0.00015093,2]
[329667610,1718555456982,-500.0,0.00015093,2]
[329667611,1718555456993,-507.82239086,0.00015093,2]
[329667612,1718555457004,-500.0,0.00015093,2]
[329667613,1718555457015,-398.1444164,0.00015093,2]
[329667614,1718555457032,-500.0,0.00015093,2]
[329667615,1718555457046,-513.26649873,0.00015093,2]
[329667616,1718555457063,-500.0,0.00015093,2]
[329667617,1718555457075,-500.0,0.00015093,2]
[329667618,1718555457087,-500.0,0.00015093,2]
[329667619,1718555457113,-500.0,0.00015093,2]
[329667620,1718555457126,-500.0,0.00015093,2]
[329667621,1718555457137,-500.0,0.00015093,2]
[329667622,1718555457148,-500.0,0.00015093,2]
[329667623,1718555457220,-151.0,0.00015093,2]
[329667624,1718555457233,-151.0,0.00015093,2]
[329667625,1718555457260,-151.0,0.00015093,2]
[329667626,1718555457271,-501.88713346,0.00015093,2]
[329667627,1718555457286,-474.03318492,0.00015093,2]
[329667628,1718555457297,-507.46232439,0.00015093,2]
[329667629,1718555457316,-152.136411,0.00015093,2]
[329667630,1718555457337,-500.0,0.00015093,2]
[329667631,1718555457365,-500.0,0.00015093,2]
[329667632,1718555457400,-500.0,0.00015093,2]
[329667633,1718555457411,-241.15586976,0.00015093,2]
[329667634,1718555457438,-216.61352034,0.00015093,2]
[329667635,1718555457460,-500.0,0.00015093,2]
[329667636,1718555457488,-188.12261556,0.00015093,2]
[329667637,1718555457500,-500.0,0.00015093,2]
[329667639,1718555457533,-1662.07,0.00015093,2]
[329667643,1718555457554,-500.0,0.00015093,2]
[329667647,1718555457565,-500.0,0.00015093,2]
[329667651,1718555457576,-191.29781204,0.00015093,2]
[329667654,1718555457606,-218.85318,0.00015093,2]
[329667656,1718555457628,-218.85318,0.00015093,2]
[329667658,1718555457641,-218.85318,0.00015093,2]
[329667660,1718555457653,-218.85318,0.00015093,2]
[329667662,1718555457665,-218.85318,0.00015093,2]
[329667663,1718555457689,-218.85318,0.00015093,2]
[329667666,1718555457714,-218.85318,0.00015093,2]
[329667667,1718555457754,-218.85318,0.00015093,2]
[329667668,1718555457856,-218.85318,0.00015093,2]
[329667669,1718555457871,-218.85318,0.00015093,2]
[329667670,1718555457910,-500.0,0.00015093,2]
[329667671,1718555457931,-218.85318,0.00015093,2]
[329667672,1718555457989,-218.85318,0.00015093,2]
[329667673,1718555458001,-218.85318,0.00015093,2]
[329667674,1718555458049,-218.85318,0.00015093,2]
[329667675,1718555458071,-218.85318,0.00015093,2]
[329667676,1718555458118,-218.85318,0.00015093,2]
[329667677,1718555458146,-218.85318,0.00015093,2]
[329667678,1718555458204,-218.853183,0.00015093,2]
[329667679,1718555458240,-528.38503923,0.00015093,2]
[329667680,1718555458272,-500.0,0.00015093,2]
[329667681,1718555458307,-151.0,0.00015093,2]
[329667682,1718555458336,-151.0,0.00015093,2]
[329667683,1718555458389,-151.0,0.00015093,2]
[329667684,1718555458404,-151.0,0.00015093,2]
[329667685,1718555458428,-151.0,0.00015093,2]
[329667686,1718555458444,-151.0,0.00015093,2]
[329667687,1718555458460,-151.0,0.00015093,2]
[329667688,1718555458485,-500.0,0.00015093,2]
[329667689,1718555458500,-411.6235829,0.00015093,2]
[329667690,1718555458525,-500.0,0.00015093,2]
[329667691,1718555458537,-500.0,0.00015093,2]
[329667692,1718555458553,-500.0,0.00015093,2]
[329667693,1718555458566,-500.0,0.00015093,2]
[329667694,1718555458581,-502.64484514,0.00015093,2]
[329667695,1718555458594,-151.0,0.00015093,2]
[329667696,1718555458617,-151.0,0.00015093,2]
[329667697,1718555458641,-151.0,0.00015093,2]
[329667698,1718555458654,-151.0,0.00015093,2]
[329667699,1718555458668,-151.0,0.00015093,2]
[329667700,1718555458684,-151.0,0.00015093,2]
[329667701,1718555458708,-537.76371277,0.00015093,2]
[329667702,1718555458722,-151.0,0.00015093,2]
[329667703,1718555458734,-151.0,0.00015093,2]
[329667704,1718555458752,-500.0,0.00015093,2]
[329667705,1718555458764,-512.11720004,0.00015093,2]
[329667706,1718555458784,-500.0,0.00015093,2]
[329667707,1718555458796,-500.7442977,0.00015093,2]
[329667708,1718555458829,-500.0,0.00015093,2]
[329667709,1718555458848,-500.0,0.00015093,2]
[329667710,1718555458861,-502.23636221,0.00015093,2]
[329667711,1718555458873,-500.0,0.00015093,2]
[329667712,1718555458886,-500.0,0.00015093,2]
[329667713,1718555458921,-501.86105742,0.00015093,2]
[329667714,1718555458933,-190.75463863,0.00015093,2]
[329667715,1718555458945,-500.0,0.00015093,2]
[329667716,1718555458958,-500.0,0.00015093,2]
[329667717,1718555458972,-500.0,0.00015093,2]
[329667718,1718555458984,-500.0,0.00015093,2]
[329667719,1718555459000,-500.0,0.00015093,2]
[329667720,1718555459013,-852.92,0.00015093,2]
[329667721,1718555459025,-852.92,0.00015093,2]
[329667722,1718555459043,-183.79379664,0.00015093,2]
[329667723,1718555459060,-504.02124696,0.00015093,2]
[329667724,1718555459072,-270.30439416,0.00015093,2]
[329667725,1718555459120,-500.0,0.00015093,2]
[329667726,1718555459145,-506.74758953,0.00015093,2]
[329667727,1718555459166,-394.8499893,0.00015093,2]
[329667728,1718555459212,-500.0,0.00015093,2]
[329667729,1718555459230,-500.0,0.00015093,2]
[329667730,1718555459243,-500.0,0.00015093,2]
[329667731,1718555459290,-500.0,0.00015093,2]
[329667732,1718555459309,-500.0,0.00015093,4]
[329667733,1718555459340,-500.0,0.00015093,2]
[329667734,1718555459361,-167.80308,0.00015093,2]
[329667735,1718555459424,-167.80308,0.00015093,2]
[329667736,1718555459436,-167.80308,0.00015093,2]
[329667737,1718555459459,-500.0,0.00015093,2]
[329667738,1718555459500,-167.80308,0.00015093,2]
[329667739,1718555459558,-167.80308,0.00015093,2]
[329667740,1718555459574,-167.80308,0.00015093,2]
[329667741,1718555459585,-250.0,0.00015093,2]
[329667742,1718555459596,-500.0,0.00015093,2]
[329667743,1718555459607,-292.371505,0.00015093,2]
[329667744,1718555459627,-292.371505,0.00015093,2]
[329667745,1718555459641,-292.371505,0.00015093,2]
[329667746,1718555459654,-500.0,0.00015093,2]
[329667747,1718555459668,-689.219524,0.00015093,2]
[329667748,1718555459681,-689.219524,0.00015093,2]
[329667749,1718555459708,-689.219524,0.00015093,2]
[329667750,1718555459744,-689.219524,0.00015093,2]
[329667751,1718555459757,-292.371505,0.00015093,2]
[329667752,1718555459792,-292.371505,0.00015093,2]
[329667753,1718555459804,-292.371499,0.00015093,2]
[329667754,1718555459829,-500.0,0.00015093,2]
[329667755,1718555459839,-689.219524,0.00015093,2]
[329667756,1718555459944,-689.219524,0.00015093,2]
[329667757,1718555459982,-689.219524,0.00015093,2]
[329667758,1718555459997,-500.0,0.00015093,2]
[329667759,1718555460036,-689.219533,0.00015093,2]
[329667760,1718555460051,-500.0,0.00015093,2]
[329667761,1718555460069,-500.0,0.00015093,2]
[329667762,1718555460079,-524.22619297,0.00015093,2]
[329667763,1718555460094,-3875.980181,0.00015093,2]
[329667764,1718555460107,-3875.980181,0.00015093,2]
[329667765,1718555460118,-3875.980181,0.00015093,2]
[329667766,1718555460132,-3875.980181,0.00015093,2]
[329667767,1718555460143,-500.0,0.00015093,2]
[329667768,1718555460154,-3875.980181,0.00015093,2]
[329667769,1718555460165,-3875.98019089,0.00015093,2]
[329667770,1718555460176,-332.5654689,0.00015093,2]
[329667771,1718555460212,-167.4345311,0.00015093,2]
[329667772,1718555460226,-500.0,0.00015093,2]
[329667773,1718555460240,-500.0,0.00015093,2]
[329667774,1718555460253,-508.53443693,0.00015093,2]
[329667775,1718555460267,-570.0,0.00015093,2]
[329667776,1718555460287,-500.0,0.00015093,2]
[329667777,1718555460298,-500.0,0.00015093,2]
[329667778,1718555460310,-500.0,0.00015093,2]
[329667779,1718555460325,-231.812815,0.00015093,2]
[329667780,1718555460337,-231.812815,0.00015093,2]
[329667781,1718555460348,-231.812815,0.00015093,2]
[329667782,1718555460360,-231.812815,0.00015093,2]
[329667783,1718555460382,-231.812815,0.00015093,2]
[329667784,1718555460394,-231.812822,0.00015093,2]
[329667785,1718555460409,-191.70608972,0.00015093,2]
[329667786,1718555460438,-308.29391028,0.00015093,2]
[329667787,1718555460453,-500.0,0.00015093,2]
[329667788,1718555460466,-500.0,0.00015093,2]
[329667789,1718555460477,-500.0,0.00015093,2]
[329667790,1718555460494,-500.0,0.00015093,2]
[329667791,1718555460514,-169.206209,0.00015093,2]
[329667792,1718555460537,-169.206209,0.00015093,2]
[329667793,1718555460554,-169.206209,0.00015093,2]
[329667794,1718555460570,-881.784166,0.00015093,2]
[329667795,1718555460582,-881.784166,0.00015093,2]
[329667796,1718555460615,-881.784166,0.00015093,2]
[329667797,1718555460652,-504.56942063,0.00015093,2]
[329667798,1718555460664,-500.0,0.00015093,2]
[329667799,1718555460677,-169.206209,0.00015093,2]
[329667800,1718555460688,-169.206209,0.00015093,2]
[329667801,1718555460709,-169.206217,0.00015093,2]
[329667802,1718555460739,-500.0,0.00015093,2]
[329667803,1718555460761,-881.784166,0.00015093,2]
[329667804,1718555460785,-881.784166,0.00015093,2]
[329667805,1718555460796,-881.784167,0.00015093,2]
[329667806,1718555460808,-500.0,0.00015093,2]
[329667807,1718555460820,-505.39181267,0.00015093,2]
[329667808,1718555460830,-373.15165748,0.00015093,2]
[329667809,1718555460842,-504.47271584,0.00015093,2]
[329667810,1718555460854,-500.0,0.00015093,2]
[329667811,1718555460865,-500.0,0.00015093,2]
[329667812,1718555460884,-504.144728,0.00015093,2]
[329667813,1718555460899,-500.0,0.00015093,2]
[329667814,1718555460914,-504.68145299,0.00015093,2]
[329667815,1718555460928,-500.0,0.00015093,2]
[329667816,1718555460940,-500.50416299,0.00015093,2]
[329667817,1718555460954,-579.41302299,0.00015093,2]
[329667818,1718555460971,-500.0,0.00015093,2]
[329667819,1718555460987,-500.0,0.00015093,2]
[329667820,1718555460998,-505.59406134,0.00015093,2]
[329667821,1718555461017,-500.0,0.00015093,2]
[329667822,1718555461030,-502.24248115,0.00015093,2]
[329667823,1718555461041,-501.35481026,0.00015093,2]
[329667824,1718555461055,-368.55467461,0.00015093,2]
[329667825,1718555461070,-500.0,0.00015093,2]
[329667826,1718555461080,-500.0,0.00015093,2]
[329667827,1718555461091,-500.0,0.00015093,2]
[329667828,1718555461116,-526.38599884,0.00015093,2]
[329667829,1718555461132,-500.0,0.00015093,2]
[329667830,1718555461148,-500.0,0.00015093,2]
[329667831,1718555461162,-500.0,0.00015093,2]
[329667832,1718555461204,-659.62,0.00015093,2]
[329667833,1718555461218,-659.62,0.00015093,2]
[329667834,1718555461245,-659.62,0.00015093,2]
[329667835,1718555461261,-659.62,0.00015093,2]
[329667836,1718555461274,-659.62,0.00015093,2]
[329667837,1718555461312,-500.0,0.00015093,2]
[329667838,1718555461324,-500.0,0.00015093,2]
[329667839,1718555461338,-500.0,0.00015093,2]
[329667840,1718555461351,-648.32249198,0.00015093,2]
[329667841,1718555461375,-500.0,0.00015093,2]
[329667842,1718555461393,-6090.84,0.00015093,2]
[329667843,1718555461419,-500.0,0.00015093,2]
[329667844,1718555461431,-500.0,0.00015093,2]
[329667845,1718555461442,-464.86396103,0.00015093,2]
[329667846,1718555461455,-151.0,0.00015094,2]
[329667847,1718555461469,-151.0,0.00015094,2]
[329667848,1718555461505,-151.0,0.00015094,2]
[329667849,1718555461517,-151.568617,0.00015094,2]
[329667850,1718555461541,-500.0,0.00015094,2]
[329667851,1718555461551,-500.0,0.00015094,2]
[329667852,1718555461563,-387.46620817,0.00015094,2]
[329667853,1718555461573,-502.72131537,0.00015094,2]
[329667854,1718555461587,-500.0,0.00015094,2]
[329667855,1718555461599,-500.0,0.00015094,2]
[329667856,1718555461610,-500.0,0.00015094,2]
[329667857,1718555461622,-500.0,0.00015094,2]
[329667858,1718555461644,-500.0,0.00015094,2]
[329667859,1718555461656,-504.86708814,0.00015094,2]
[329667860,1718555461667,-500.0,0.00015094,2]
[329667861,1718555461682,-500.0,0.00015094,2]
[329667862,1718555461700,-500.0,0.00015094,2]
[329667863,1718555461710,-500.0,0.00015094,2]
[329667864,1718555461721,-500.0,0.00015094,2]
[329667865,1718555461733,-151.0,0.00015094,2]
[329667866,1718555461745,-151.0,0.00015094,2]
[329667867,1718555461760,-183.910664,0.00015094,2]
[329667868,1718555461776,-500.0,0.00015094,2]
[329667869,1718555461791,-500.0,0.00015094,2]
[329667870,1718555461803,-500.0,0.00015094,2]
[329667871,1718555461817,-852.92,0.00015094,2]
[329667872,1718555461840,-852.92,0.00015094,2]
[329667873,1718555461850,-852.92,0.00015094,2]
[329667874,1718555461861,-852.92,0.00015094,2]
[329667875,1718555461871,-500.0,0.00015094,2]
[329667876,1718555461885,-500.0,0.00015094,2]
[329667877,1718555461902,-500.0,0.00015094,2]
[329667878,1718555461912,-500.0,0.00015094,2]
[329667879,1718555461925,-659.62,0.00015094,2]
[329667880,1718555461937,-659.62,0.00015094,2]
[329667881,1718555461960,-659.62,0.00015094,2]
[329667882,1718555461973,-659.62,0.00015094,2]
[329667883,1718555461997,-6090.84,0.00015094,2]
[329667884,1718555462035,-6090.84,0.00015094,2]
[329667885,1718555462066,-1084.39489173,0.00015094,2]
[329667886,1718555462583,-3126.13126108,0.00014115,4]
[329667887,1718555462605,-5006.44510827,0.00015094,2]
[329667888,1718555462625,-6090.84,0.00015094,2]
[329667889,1718555462640,-116899.34798866,0.00015095,2]
[329667890,1718555462654,-27600.0,0.00015095,2]
[329667891,1718555462668,-8192.67663532,0.00015095,2]
[329667892,1718555462700,-161.154819,0.00015095,2]
[329667893,1718555462714,-151.0,0.00015095,2]
[329667894,1718555462725,-151.0,0.00015095,2]
[329667895,1718555462740,-153.0,0.000151,2]
[329667896,1718555462760,-153.0,0.000151,2]
[329667897,1718555462773,-219.8,0.00015182,2]
[329667898,1718555462786,-160.0,0.00015189,2]
[329667899,1718555462797,-500.0,0.00015195,2]
[329667900,1718555462818,-852.92,0.00015195,2]
[329667901,1718555462832,-500.0,0.00015195,2]
[329667902,1718555462844,-6090.84,0.00015195,2]
[329667903,1718555462855,-151.0,0.00015196,2]
[329667904,1718555462873,-151.0,0.00015196,2]
[329667905,1718555462885,-156.860116,0.00015196,2]
[329667906,1718555462895,-156.860116,0.00015196,2]
[329667907,1718555462916,-151.0,0.00015196,2]
[329667908,1718555462938,-151.0,0.00015196,2]
[329667909,1718555462949,-151.0,0.00015196,2]
[329667910,1718555462966,-151.0,0.00015196,2]
[329667911,1718555462979,-151.0,0.00015196,2]
[329667912,1718555463001,-151.0,0.00015196,2]
[329667913,1718555463015,-151.0,0.00015196,2]
[329667914,1718555463030,-151.0,0.00015196,2]
[329667915,1718555463053,-500.0,0.00015196,2]
[329667916,1718555463076,-852.92,0.00015196,2]
[329667917,1718555463094,-500.0,0.00015196,2]
[329667918,1718555463111,-659.62,0.00015196,2]
[329667919,1718555463134,-151.0,0.00015197,2]
[329667920,1718555463172,-151.0,0.00015197,2]
[329667921,1718555463193,-151.0,0.00015197,2]
[329667922,1718555463215,-156.860116,0.00015197,2]
[329667923,1718555463229,-156.860116,0.00015197,2]
[329667924,1718555463265,-156.860116,0.00015197,2]
[329667925,1718555463291,-151.0,0.00015197,2]
[329667926,1718555463302,-151.0,0.00015197,2]
[329667927,1718555463313,-298.121321,0.00015197,2]
[329667928,1718555463324,-151.0,0.00015197,2]
[329667929,1718555463337,-151.0,0.00015197,2]
[329667930,1718555463360,-154.855818,0.00015197,2]
[329667931,1718555463396,-500.0,0.00015197,2]
[329667932,1718555463428,-500.0,0.00015197,2]
[329667933,1718555463441,-403.5974146,0.00015197,2]
[329667934,1718555463481,-852.92,0.00015197,2]
[329667935,1718555463508,-852.92,0.00015197,2]
[329667936,1718555463522,-852.92,0.00015197,2]
[329667937,1718555463532,-852.92,0.00015197,2]
[329667938,1718555463561,-500.0,0.00015197,2]
[329667939,1718555463573,-500.0,0.00015197,2]
[329667940,1718555463584,-608.74316046,0.00015197,2]
[329667941,1718555463597,-659.62,0.00015197,2]
[329667942,1718555463612,-659.62,0.00015197,2]
[329667943,1718555463626,-6090.84,0.00015197,2]
[329667944,1718555463638,-303.48348565,0.00015198,2]
[329667945,1718555463649,-500.0,0.00015198,2]
[329667946,1718555463659,-500.0,0.00015198,2]
[329667947,1718555463681,-517.26896291,0.00015198,2]
[329667948,1718555463691,-151.0,0.00015198,2]
[329667949,1718555463705,-151.0,0.00015198,2]
[329667950,1718555463717,-151.0,0.00015198,2]
[329667951,1718555463733,-151.0,0.00015198,2]
[329667952,1718555463743,-151.0,0.00015198,2]
[329667953,1718555463874,-156.860116,0.00015198,2]
[329667954,1718555463897,-156.860116,0.00015198,2]
[329667955,1718555463925,-156.860116,0.00015198,2]
[329667956,1718555463958,-156.860116,0.00015198,2]
[329667957,1718555463980,-156.860122,0.00015198,2]
[329667958,1718555464000,-500.0,0.00015198,2]
[329667959,1718555464013,-501.14183833,0.00015198,2]
[329667960,1718555464141,-500.0,0.00015198,2]
[329667961,1718555464200,-500.98472723,0.00015198,2]
[329667962,1718555464229,-500.0,0.00015198,2]
[329667963,1718555464242,-618.38505847,0.00015198,2]
[329667964,1718555464258,-500.0,0.00015198,2]
[329667965,1718555464281,-504.74559881,0.00015198,2]
[329667966,1718555464297,-500.0,0.00015198,2]
[329667967,1718555464321,-509.69275419,0.00015198,2]
[329667968,1718555464332,-500.0,0.00015198,2]
[329667969,1718555464350,-500.0,0.00015198,2]
[329667970,1718555464361,-500.0,0.00015198,2]
[329667971,1718555464372,-500.0,0.00015198,2]
[329667972,1718555464393,-151.0,0.00015198,2]
[329667973,1718555464412,-151.0,0.00015198,2]
[329667974,1718555464423,-151.0,0.00015198,2]
[329667975,1718555464459,-500.0,0.00015198,2]
[329667976,1718555464498,-500.0,0.00015198,2]
[329667977,1718555464509,-500.0,0.00015198,2]
[329667978,1718555464520,-504.7738375,0.00015198,2]
[329667979,1718555464530,-506.16384501,0.00015198,2]
[329667980,1718555464541,-500.0,0.00015198,2]
[329667981,1718555464552,-284.71803163,0.00015198,2]
[329667982,1718555464571,-508.24515914,0.00015198,2]
[329667983,1718555464588,-502.23255944,0.00015198,2]
[329667984,1718555464610,-507.83003327,0.00015198,2]
[329667985,1718555464625,-517.05068286,0.00015198,2]
[329667986,1718555464637,-500.0,0.00015198,2]
[329667987,1718555464676,-527.28356197,0.00015198,2]
[329667988,1718555464691,-500.0,0.00015198,2]
[329667989,1718555464714,-500.0,0.00015198,2]
[329667990,1718555464726,-584.9466086,0.000152,2]
[329667991,1718555464738,-153.0,0.000152,2]
[329667992,1718555464752,-153.9779854,0.000152,2]
[329667993,1718555464763,-323.5556165,0.000152,2]
[329667994,1718555464775,-153.0,0.000152,2]
[329667995,1718555464788,-153.0,0.000152,2]
[329667996,1718555464813,-205.5018464,0.000152,2]
[329667997,1718555464844,-205.5018464,0.000152,2]
[329667998,1718555464858,-153.0,0.000152,2]
[329667999,1718555464869,-205.5018464,0.000152,2]
[329668000,1718555464885,-153.0,0.000152,2]
[329668001,1718555464899,-6090.84,0.00015212,2]
[329668002,1718555464913,-500.0,0.00015213,2]
[329668003,1718555464941,-1099.54,0.00015213,2]
[329668004,1718555464965,-500.0,0.00015213,2]
[329668005,1718555464996,-823.02377976,0.00015213,2]
[329668006,1718555465024,-151.0,0.00014118,2]
[329668007,1718555465056,-1167.0,0.00015213,2]
[329668008,1718555465221,-151.0,0.00014118,2]
[329668009,1718555465252,-151.0,0.00014392,2]
[329668010,1718555465264,-151.0,0.00014392,2]
[329668011,1718555465295,-972.0000001,0.00015213,2]
[329668012,1718555465334,-3547.67244134,0.00015213,2]
[329668013,1718555465348,-1012.4537788,0.00015213,2]
[329668014,1718555465359,-309.5462212,0.00015213,2]
[329668015,1718555465373,-213.05452005,0.00015213,2]
[329668016,1718555465390,-439.02644048,0.00015213,2]
[329668017,1718555465428,-681.01915666,0.00015091,2]
[329668018,1718555535276,1432.37528222,9.999e-05,2]
[329668019,1718555821185,151.00453014,0.00018549,30]
[329668020,1718555821311,151.00453014,0.00018178,120]
[329668023,1718555865894,274.0042809,0.00013699,2]
[329668031,1718555998742,1432.37528222,9.999e-05,2]
[329668035,1718556056203,2476.91548945,0.00014,2]
[329668038,1718556083237,1432.37528222,0.00014,2]
[329668042,1718556122824,3267.2968766,0.00013116,2]
[329668047,1718556205947,151.00604024,0.00018742,30]
[329668048,1718556206241,151.00604024,0.00018367,120]
[329668061,1718556512382,151.00453014,0.0001889,30]
[329668062,1718556512469,151.00453014,0.00018512,120]
[329668113,1718556635300,-3073.20875241,0.00014112,2]
[329668116,1718556635316,-300.0,0.00014113,2]
[329668118,1718556635356,-300.0,0.00014113,2]
[329668120,1718556635392,-2222.22739309,0.00014114,2]
[329668121,1718556635420,-1272.12660779,0.00014114,2]
[329668123,1718556635472,-59.04170556,0.00014115,2]
[329668125,1718556635487,-440.95829444,0.00014115,2]
[329668127,1718556635498,-500.0,0.00014115,2]
[329668129,1718556635528,-191.13870847,0.00014115,2]
[329668168,1718556636245,-136.87864713,0.00014115,2]
[329668169,1718556636255,-500.0,0.00014115,2]
[329668170,1718556636271,-500.0,0.00014115,2]
[329668171,1718556636323,-519.68818445,0.00014115,2]
[329668173,1718556636348,-500.0,0.00014115,2]
[329668175,1718556636364,-500.0,0.00014115,2]
[329668177,1718556636394,-500.0,0.00014115,2]
[329668178,1718556636411,-500.0,0.00014115,2]
[329668181,1718556636423,-3761.33456274,0.00014115,2]
[329668184,1718556636456,-636.94543726,0.00014115,2]
[329668186,1718556636469,-516.59986818,0.00014115,2]
[329668187,1718556636482,-500.0,0.00014115,2]
[329668189,1718556636499,-500.0,0.00014115,2]
[329668191,1718556636514,-500.0,0.00014115,2]
[329668193,1718556636530,-500.0,0.00014115,2]
[329668194,1718556636548,-208.15738514,0.00014115,2]
[329668409,1718556640410,300.0,0.00023,30]
[329668454,1718556641516,-291.84261486,0.00014115,2]
[329668458,1718556641572,-500.0,0.00014115,2]
[329668460,1718556641598,-102.35318278,0.00014115,2]
[329668463,1718556641621,-397.64681722,0.00014115,2]
[329668464,1718556641661,-500.0,0.00014115,2]
[329668466,1718556641672,-500.0,0.00014115,2]
[329668468,1718556641703,-500.0,0.00014115,2]
[329668471,1718556641731,-500.0,0.00014115,2]
[329668472,1718556641750,-500.0,0.00014115,2]
[329668474,1718556641762,-503.50638434,0.00014116,2]
[329668476,1718556641773,-500.0,0.00014116,2]
[329668478,1718556641784,-482.20873011,0.00014116,2]
[329668481,1718556641803,-25.55225283,0.00014116,2]
[329668482,1718556641824,-474.44774717,0.00014116,2]
[329668483,1718556641837,-313.63350069,0.00014116,2]
[329668795,1718556648112,-500.0,0.00014115,2]
[329668796,1718556648132,-186.36649931,0.00014116,2]
[329668799,1718556648192,-505.97,0.00014116,2]
[329668800,1718556648208,-500.0,0.00014116,2]
[329668801,1718556648241,-500.0,0.00014116,2]
[329668803,1718556648266,-441.57268495,0.00014116,2]
[329668806,1718556648357,-58.42731505,0.00014116,2]
[329668807,1718556648376,-500.0,0.00014116,2]
[329668809,1718556648404,-500.0,0.00014116,2]
[329668810,1718556648438,-500.0,0.00014116,2]
[329668813,1718556648464,-500.0,0.00014116,2]
[329668815,1718556648490,-861.56,0.00014116,2]
[329668817,1718556648518,-550.51,0.00014116,2]
[329668819,1718556648538,-500.0,0.00014116,2]
[329668822,1718556648584,-500.0,0.00014116,2]
[329668824,1718556648620,-500.0,0.00014116,2]
[329668825,1718556648653,-500.0,0.00014116,2]
[329668826,1718556648697,-500.0,0.00014116,2]
[329668828,1718556648709,-500.0,0.00014116,2]
[329668830,1718556648743,-500.0,0.00014116,2]
[329668832,1718556648773,-500.0,0.00014116,2]
[329668833,1718556648807,-504.93859245,0.00014116,2]
[329668835,1718556648829,-418.07380837,0.00014116,2]
[329668837,1718556648884,-88.70590147,0.00014116,2]
[329668838,1718556648895,-429.36665894,0.00014116,2]
[329668878,1718556649860,-70.63334106,0.00014116,2]
[329668880,1718556649898,-432.37854291,0.00014116,2]
[329668883,1718556649976,-67.62145709,0.00014116,2]
[329668885,1718556649990,-500.0,0.00014116,2]
[329668887,1718556650003,-500.0,0.00014116,2]
[329668889,1718556650060,-780.66,0.00014116,2]
[329668890,1718556650076,-1349.87,0.00014116,2]
[329668893,1718556650092,-500.0,0.00014116,2]
[329668895,1718556650134,-395.28154507,0.00014116,2]
[329668897,1718556650169,-936.13845493,0.00014116,2]
[329668899,1718556650182,-1331.42,0.00014116,2]